fUSD/lending_fUSD_20260614
["ID","MTS","AMOUNT","RATE_DAILY","PERIOD"]
[425007091,1781410246000,-2449.0,0.00027095,10]
[425007108,1781410246000,-328.28889658,0.00027389,2]
[425007089,1781410246000,-572.24,0.00026999,2]
[425007093,1781410246000,-741.73002891,0.00027098,7]
[425007092,1781410246000,-985.93,0.00027096,2]
[425007096,1781410246000,-535.20789043,0.00027245,2]
[425007101,1781410246000,-535.20789043,0.00027381,2]
[425007098,1781410246000,-214.11,0.000273,2]
[425007102,1781410246000,-573.9,0.00027389,2]
[425007104,1781410246000,-885.5344241,0.00027389,2]
[425007097,1781410246000,-509.9815056,0.00027297,2]
[425007100,1781410246000,-183.0,0.0002738,2]
[425007099,1781410246000,-970.20253942,0.00027306,2]
[425007105,1781410246000,-100.3955759,0.00027389,2]
[425007090,1781410246000,-2000.0,0.00027,7]
[425007136,1781410246000,-893.81,0.00027396,2]
[425007095,1781410246000,-200.0,0.00027178,2]
[425007140,1781410246000,-893.81,0.00027396,2]
[425007166,1781410246000,-500.0,0.00027396,2]
[425007170,1781410246000,-500.0,0.00027396,2]
[425007169,1781410246000,-500.0,0.00027396,2]
[425007171,1781410246000,-500.0,0.00027396,2]
[425007168,1781410246000,-500.0,0.00027396,2]
[425007167,1781410246000,-500.0,0.00027396,2]
[425007174,1781410246000,-500.0,0.00027396,2]
[425007176,1781410246000,-500.0,0.00027396,2]
[425007180,1781410246000,-500.0,0.00027396,2]
[425007183,1781410246000,-500.0,0.00027396,2]
[425007181,1781410246000,-226.7131378,0.00027396,2]
[425007162,1781410246000,-500.0,0.00027396,2]
[425007182,1781410246000,-273.2868622,0.00027396,2]
[425007179,1781410246000,-500.0,0.00027396,2]
[425007175,1781410246000,-500.0,0.00027396,2]
[425007178,1781410246000,-500.0,0.00027396,2]
[425007185,1781410246000,-500.0,0.00027396,2]
[425007184,1781410246000,-500.0,0.00027396,2]
[425007189,1781410246000,-210.68283571,0.00027396,2]
[425007190,1781410246000,-500.0,0.00027396,2]
[425007191,1781410246000,-500.0,0.00027396,2]
[425007188,1781410246000,-500.0,0.00027396,2]
[425007187,1781410246000,-500.0,0.00027396,2]
[425007137,1781410246000,-1138.21147473,0.00027396,2]
[425007177,1781410246000,-500.0,0.00027396,2]
[425007164,1781410246000,-500.0,0.00027396,2]
[425007186,1781410246000,-500.0,0.00027396,2]
[425007165,1781410246000,-500.0,0.00027396,2]
[425007139,1781410246000,-893.81,0.00027396,2]
[425007149,1781410246000,-572.24,0.00027396,2]
[425007144,1781410246000,-572.24,0.00027396,2]
[425007142,1781410246000,-500.0,0.00027396,2]
[425007150,1781410246000,-500.0,0.00027396,2]
[425007138,1781410246000,-1138.21147472,0.00027396,2]
[425007143,1781410246000,-150.0,0.00027396,20]
[425007172,1781410246000,-500.0,0.00027396,2]
[425007147,1781410246000,-572.24,0.00027396,2]
[425007146,1781410246000,-572.24,0.00027396,2]
[425007148,1781410246000,-572.24,0.00027396,2]
[425007151,1781410246000,-500.0,0.00027396,2]
[425007145,1781410246000,-572.24,0.00027396,2]
[425007161,1781410246000,-500.0,0.00027396,2]
[425007152,1781410246000,-500.0,0.00027396,2]
[425007163,1781410246000,-500.0,0.00027396,2]
[425007157,1781410246000,-500.0,0.00027396,2]
[425007160,1781410246000,-500.0,0.00027396,2]
[425007155,1781410246000,-500.0,0.00027396,2]
[425007173,1781410246000,-500.0,0.00027396,2]
[425007154,1781410246000,-500.0,0.00027396,2]
[425007159,1781410246000,-500.0,0.00027396,2]
[425007158,1781410246000,-500.0,0.00027396,2]
[425007153,1781410246000,-500.0,0.00027396,2]
[425007156,1781410246000,-500.0,0.00027396,2]
[425007195,1781410247000,-500.0,0.00027396,2]
[425007192,1781410247000,-500.0,0.00027396,2]
[425007193,1781410247000,-500.0,0.00027396,2]
[425007194,1781410247000,-500.0,0.00027396,2]
[425007197,1781410247000,-500.0,0.00027396,2]
[425007196,1781410247000,-500.0,0.00027396,2]
[425007198,1781410247000,-500.0,0.00027396,2]
[425007199,1781410247000,-500.0,0.00027396,2]
[425007201,1781410247000,-241.36407652,0.00027396,2]
[425007203,1781410247000,-2046.38612908,0.00027396,2]
[425007202,1781410247000,-1254.69622557,0.00027396,2]
[425007205,1781410247000,-500.0,0.00027396,2]
[425007204,1781410247000,-500.0,0.00027396,2]
[425007207,1781410247000,-500.0,0.00027396,2]
[425007209,1781410247000,-500.0,0.00027396,2]
[425007206,1781410247000,-500.0,0.00027396,2]
[425007208,1781410247000,-500.0,0.00027396,2]
[425007211,1781410247000,-297.57481206,0.00027396,2]
[425007210,1781410247000,-500.0,0.00027396,2]
[425007200,1781410247000,-500.0,0.00027396,2]
[425007212,1781410359000,317.92,0.00011234,2]
[425007213,1781410360000,317.92,0.00011717,2]
[425007215,1781410361000,317.92,0.0001207,2]
[425007214,1781410361000,317.92,0.00011916,2]
[425007216,1781410362000,317.92,0.00012199,2]
[425007217,1781410363000,317.92,0.00012313,2]
[425007218,1781410364000,317.92,0.00012416,2]
[425007219,1781411227000,-332.26909934,0.0001684,2]
[425007220,1781411227000,-13.50907482,0.00016862,2]
[425007222,1781411238000,-266.48026774,0.000172,2]
[425007221,1781411238000,-257.55576887,0.00016862,2]
[425007223,1781411243000,-233.51973226,0.000172,2]
[425007225,1781411243000,-500.0,0.00017399,2]
[425007224,1781411243000,-500.0,0.00017399,2]
[425007226,1781411243000,-365.48377061,0.00017399,2]
[425007228,1781411243000,-500.0,0.000176,2]
[425007227,1781411243000,-2500.0,0.000174,2]
[425007229,1781411243000,-151.0,0.0001764,2]
[425007234,1781411243000,-152.0,0.0001764,2]
[425007231,1781411243000,-151.0,0.0001764,2]
[425007233,1781411243000,-151.0,0.0001764,2]
[425007232,1781411243000,-151.0,0.0001764,2]
[425007230,1781411243000,-151.0,0.0001764,2]
[425007236,1781411243000,-153.0,0.0001764,2]
[425007247,1781411243000,-1221.07051884,0.0001892,2]
[425007244,1781411243000,-276.1301061,0.00018524,2]
[425007245,1781411243000,-2500.0,0.0001892,2]
[425007243,1781411243000,-327.28197789,0.0001812,2]
[425007242,1781411243000,-506.00003,0.00018,2]
[425007246,1781411243000,-463.58438314,0.0001892,2]
[425007241,1781411243000,-514.0,0.00018,2]
[425007239,1781411243000,-151.0,0.0001764,2]
[425007237,1781411243000,-150.0,0.0001764,2]
[425007238,1781411243000,-151.0,0.0001764,2]
[425007240,1781411243000,-151.0,0.0001764,2]
[425007235,1781411243000,-151.0,0.0001764,2]
[425007249,1781411268000,-200.80905334,0.0001892,2]
[425007254,1781411268000,-166.62229823,0.0002,2]
[425007255,1781411268000,-109.90990336,0.0002,2]
[425007253,1781411268000,-167.0,0.0002,2]
[425007252,1781411268000,-159.0,0.0002,2]
[425007250,1781411268000,-600.0,0.0001892,2]
[425007251,1781411268000,-170.0,0.0002,2]
[425007248,1781411268000,-1426.65874507,0.0001892,2]
[425007256,1781411363000,-96.09009664,0.0002,2]
[425007257,1781411363000,-274.0,0.0002,2]
[425007258,1781411367000,250.0,0.00014,2]
[425007263,1781411368000,-274.0,0.00021,2]
[425007262,1781411368000,-206.0,0.00021,2]
[425007261,1781411368000,-159.0,0.00021,2]
[425007259,1781411368000,-506.12,0.000207,2]
[425007260,1781411368000,-643.87071947,0.00020977,2]
[425007264,1781411373000,-150.0,0.00021918,2]
[425007273,1781411431000,-154.52089963,0.00022407,2]
[425007272,1781411431000,-603.65811544,0.00022,2]
[425007274,1781411431000,-154.52089961,0.00022407,2]
[425007270,1781411431000,-274.0,0.00022,2]
[425007267,1781411431000,-449.62066003,0.00022,10]
[425007271,1781411431000,-407.0,0.00022,2]
[425007269,1781411431000,-206.0,0.00022,2]
[425007266,1781411431000,-633.37933997,0.00022,10]
[425007275,1781411431000,-165.0,0.00023,2]
[425007268,1781411431000,-159.0,0.00022,2]
[425007277,1781411431000,-274.0,0.00023,2]
[425007283,1781411431000,-151.0,0.0002396,2]
[425007278,1781411431000,-150.0,0.00023014,2]
[425007276,1781411431000,-206.0,0.00023,2]
[425007288,1781411431000,-151.0,0.0002396,2]
[425007287,1781411431000,-151.0,0.0002396,2]
[425007286,1781411431000,-151.0,0.0002396,2]
[425007285,1781411431000,-151.0,0.0002396,2]
[425007289,1781411431000,-151.0,0.0002396,2]
[425007282,1781411431000,-512.01600473,0.0002396,2]
[425007279,1781411431000,-166.66,0.0002317,30]
[425007281,1781411431000,-500.0,0.0002396,2]
[425007280,1781411431000,-166.66,0.00023658,30]
[425007284,1781411431000,-151.0,0.0002396,2]
[425007309,1781411432000,-287.52542384,0.00025,2]
[425007314,1781411432000,-166.66,0.00025609,30]
[425007312,1781411432000,-166.66,0.00025122,30]
[425007313,1781411432000,-500.0,0.00025315,2]
[425007304,1781411432000,-158.1,0.00024658,2]
[425007306,1781411432000,-5000.0,0.00024866,2]
[425007302,1781411432000,-158.81,0.00024658,2]
[425007316,1781411432000,-174.57,0.00025803,120]
[425007307,1781411432000,-209.0,0.00025,2]
[425007305,1781411432000,-3560.8424,0.00024766,2]
[425007303,1781411432000,-158.45,0.00024658,2]
[425007294,1781411432000,-835.0,0.00024,7]
[425007301,1781411432000,-166.66,0.00024634,30]
[425007299,1781411432000,-166.66,0.00024146,30]
[425007297,1781411432000,-205.10002101,0.00024145,2]
[425007300,1781411432000,-1130.66,0.00024174,2]
[425007296,1781411432000,-274.0,0.00024,2]
[425007293,1781411432000,-200.29866833,0.0002396,2]
[425007291,1781411432000,-151.0,0.0002396,2]
[425007295,1781411432000,-206.0,0.00024,2]
[425007290,1781411432000,-151.0,0.0002396,2]
[425007292,1781411432000,-151.0,0.0002396,2]
[425007315,1781411432000,-1130.66,0.00025786,2]
[425007311,1781411432000,-194.22,0.00025087,2]
[425007322,1781411432000,-790.0,0.00026069,2]
[425007340,1781411432000,-424.0,0.00026796,2]
[425007318,1781411432000,-201.11582767,0.00025839,2]
[425007342,1781411432000,-150.0,0.0002685,2]
[425007341,1781411432000,-123.61283665,0.00026796,2]
[425007339,1781411432000,-300.0,0.00026796,2]
[425007343,1781411432000,-106.38716335,0.00026893,2]
[425007338,1781411432000,-1929.8131964,0.00026796,2]
[425007337,1781411432000,-9072.4552,0.00026793,2]
[425007336,1781411432000,-323.516969,0.00026771,2]
[425007335,1781411432000,-2777.42603305,0.00026768,2]
[425007334,1781411432000,-1472.138,0.00026756,14]
[425007333,1781411432000,-674.0,0.00026754,2]
[425007317,1781411432000,-220.0,0.00025839,2]
[425007329,1781411432000,-500.0,0.0002668,2]
[425007330,1781411432000,-575.12,0.0002668,2]
[425007327,1781411432000,-500.0,0.0002668,2]
[425007332,1781411432000,-2777.42603305,0.00026751,2]
[425007326,1781411432000,-500.0,0.0002668,2]
[425007328,1781411432000,-500.0,0.0002668,2]
[425007324,1781411432000,-365.21870518,0.00026235,2]
[425007323,1781411432000,-703.0,0.00026086,2]
[425007325,1781411432000,-151.0,0.00026296,2]
[425007320,1781411432000,-229.5,0.0002585,2]
[425007319,1781411432000,-798.88417233,0.00025839,2]
[425007321,1781411432000,-151.0,0.00025922,2]
[425007331,1781411432000,-575.12,0.0002668,2]
[425007346,1781411437000,-158.38,0.00024658,2]
[425007347,1781411437000,-60.69883665,0.00026893,2]
[425007349,1781411437000,-100.33439515,0.00026893,2]
[425007348,1781411437000,-558.21460485,0.00026893,2]
[425007350,1781411437000,-1228.0,0.00026893,2]
[425007353,1781411438000,-4716.83026371,0.00027,2]
[425007352,1781411438000,-2928.45237585,0.00027,2]
[425007351,1781411438000,-1359.0,0.00026893,2]
[425007375,1781411441000,-503.44057045,0.00027,2]
[425007374,1781411441000,-2426.37058701,0.00027,2]
[425007373,1781411441000,-221.8,0.00024658,2]
[425007378,1781411443000,-398.0,0.00026106,2]
[425007379,1781411443000,-294.89856981,0.00027,2]
[425007380,1781411443000,-7320.09409103,0.00027,2]
[425007381,1781411443000,-2500.0,0.00027,2]
[425007377,1781411443000,-337.12624214,0.00027,2]
[425007382,1781411443000,-6181.42406779,0.00027022,2]
[425007385,1781411443000,-2777.42603305,0.00027086,2]
[425007384,1781411443000,-656.62438815,0.00027083,7]
[425007386,1781411443000,-598.90161125,0.000271,2]
[425007388,1781411443000,-1961.7860614,0.000271,2]
[425007383,1781411443000,-1486.35811646,0.00027043,7]
[425007401,1781411446000,-157222.87825686,0.000271,2]
[425007400,1781411446000,-150.42328462,0.00024968,2]
[425007405,1781412346000,-66.187329,0.0001764,2]
[425007403,1781412346000,-300.86394018,0.00017639,2]
[425007404,1781412346000,-218.0,0.00017639,2]
[425007407,1781412440000,-84.812671,0.0001764,2]
[425007408,1781412440000,-151.0,0.0001764,2]
[425007410,1781412440000,-90.56119509,0.0001764,2]
[425007409,1781412440000,-151.0,0.0001764,2]
[425007411,1781412444000,-60.43880491,0.0001764,2]
[425007412,1781412444000,-151.0,0.0001764,2]
[425007413,1781412444000,-152.0,0.0001764,2]
[425007414,1781412444000,-151.0,0.0001764,2]
[425007416,1781412444000,-151.0,0.0001764,2]
[425007417,1781412444000,-151.0,0.0001764,2]
[425007418,1781412444000,-87.95349235,0.0001764,2]
[425007415,1781412444000,-151.0,0.0001764,2]
[425007431,1781412631000,-62.04650765,0.0001764,2]
[425007479,1781412632000,-261.0,0.00018359,2]
[425007477,1781412632000,-150.0,0.00018179,2]
[425007475,1781412632000,-152.0,0.00018,2]
[425007470,1781412632000,-512.0,0.00018,2]
[425007473,1781412632000,-151.0,0.00018,2]
[425007469,1781412632000,-152.0,0.0001764,2]
[425007459,1781412632000,-150.0,0.0001764,2]
[425007485,1781412632000,-166.0,0.0002,2]
[425007468,1781412632000,-151.0,0.0001764,2]
[425007465,1781412632000,-150.0,0.0001764,2]
[425007471,1781412632000,-150.0,0.00018,2]
[425007483,1781412632000,-151.0,0.0002,2]
[425007433,1781412632000,-150.0,0.0001764,2]
[425007482,1781412632000,-252.06760672,0.00019404,2]
[425007484,1781412632000,-199.0,0.0002,2]
[425007486,1781412632000,-159.0,0.0002,2]
[425007489,1781412632000,-151.0,0.00021,2]
[425007488,1781412632000,-293.53258105,0.00021,2]
[425007491,1781412632000,-247.4610141,0.00021307,2]
[425007494,1781412632000,-151.0,0.00022,2]
[425007496,1781412632000,-500.0,0.00022055,2]
[425007495,1781412632000,-199.0,0.00022,2]
[425007492,1781412632000,-2157.97375117,0.00022,2]
[425007490,1781412632000,-199.0,0.00021,2]
[425007464,1781412632000,-152.0,0.0001764,2]
[425007481,1781412632000,-155.59466526,0.000192,2]
[425007462,1781412632000,-151.0,0.0001764,2]
[425007440,1781412632000,-152.0,0.0001764,2]
[425007458,1781412632000,-151.0,0.0001764,2]
[425007432,1781412632000,-151.0,0.0001764,2]
[425007434,1781412632000,-153.0,0.0001764,2]
[425007435,1781412632000,-152.0,0.0001764,2]
[425007437,1781412632000,-150.0,0.0001764,2]
[425007438,1781412632000,-151.0,0.0001764,2]
[425007436,1781412632000,-151.0,0.0001764,2]
[425007439,1781412632000,-151.0,0.0001764,2]
[425007441,1781412632000,-151.0,0.0001764,2]
[425007493,1781412632000,-1342.02624883,0.00022,2]
[425007442,1781412632000,-151.0,0.0001764,2]
[425007443,1781412632000,-152.0,0.0001764,2]
[425007444,1781412632000,-150.0,0.0001764,2]
[425007445,1781412632000,-152.0,0.0001764,2]
[425007448,1781412632000,-151.0,0.0001764,2]
[425007450,1781412632000,-163.68,0.0001764,2]
[425007452,1781412632000,-151.0,0.0001764,2]
[425007447,1781412632000,-150.0,0.0001764,2]
[425007446,1781412632000,-150.0,0.0001764,2]
[425007449,1781412632000,-151.0,0.0001764,2]
[425007451,1781412632000,-151.0,0.0001764,2]
[425007453,1781412632000,-152.0,0.0001764,2]
[425007456,1781412632000,-152.0,0.0001764,2]
[425007457,1781412632000,-151.0,0.0001764,2]
[425007455,1781412632000,-152.0,0.0001764,2]
[425007454,1781412632000,-153.0,0.0001764,2]
[425007460,1781412632000,-153.0,0.0001764,2]
[425007498,1781412632000,-410.0,0.0002255,2]
[425007487,1781412632000,-168.79437405,0.00021,2]
[425007499,1781412632000,-412.0,0.00022786,2]
[425007528,1781412632000,-167.62,0.00025492,2]
[425007530,1781412632000,-2247.0,0.00025566,2]
[425007531,1781412632000,-166.66,0.00025575,30]
[425007532,1781412632000,-151.0,0.00025932,2]
[425007533,1781412632000,-160.0,0.00025944,2]
[425007535,1781412632000,-2240.0,0.00025945,2]
[425007537,1781412632000,-206.70150518,0.00026027,2]
[425007539,1781412632000,-2260.0,0.00026387,2]
[425007536,1781412632000,-194.04,0.00025965,2]
[425007534,1781412632000,-2225.0,0.00025945,2]
[425007542,1781412632000,-151.0,0.00026524,2]
[425007540,1781412632000,-2225.0,0.00026387,2]
[425007527,1781412632000,-371.59,0.00025472,120]
[425007538,1781412632000,-2257.0,0.00026387,2]
[425007543,1781412632000,-151.0,0.00026524,2]
[425007545,1781412632000,-194.04,0.00026599,2]
[425007546,1781412632000,-407.0,0.00026607,2]
[425007548,1781412632000,-2287.0,0.00026607,2]
[425007547,1781412632000,-2244.0,0.00026607,2]
[425007551,1781412632000,-409.0,0.00026607,2]
[425007553,1781412632000,-2206.0,0.00026607,2]
[425007550,1781412632000,-2242.0,0.00026607,2]
[425007549,1781412632000,-2290.0,0.00026607,2]
[425007552,1781412632000,-2288.0,0.00026607,2]
[425007554,1781412632000,-3557.0,0.00026617,2]
[425007497,1781412632000,-500.0,0.00022307,2]
[425007544,1781412632000,-656.62438815,0.0002656,7]
[425007525,1781412632000,-407.0,0.00025126,2]
[425007541,1781412632000,-151.0,0.00026524,2]
[425007524,1781412632000,-166.66,0.00025087,30]
[425007529,1781412632000,-2271.0,0.00025566,2]
[425007502,1781412632000,-166.66,0.00023139,30]
[425007501,1781412632000,-199.0,0.00023,2]
[425007503,1781412632000,-482.229,0.0002322,7]
[425007506,1781412632000,-166.0,0.00024,2]
[425007504,1781412632000,-402.0,0.00023425,2]
[425007505,1781412632000,-166.66,0.00023626,30]
[425007507,1781412632000,-199.0,0.00024,2]
[425007510,1781412632000,-183.6,0.00024281,2]
[425007509,1781412632000,-166.66,0.00024113,30]
[425007508,1781412632000,-500.0,0.00024055,2]
[425007512,1781412632000,-1000.0,0.00024292,2]
[425007511,1781412632000,-2732.48,0.00024284,2]
[425007500,1781412632000,-151.0,0.00023,2]
[425007526,1781412632000,-194.04,0.00025332,2]
[425007513,1781412632000,-5000.0,0.00024322,2]
[425007523,1781412632000,-209.0,0.00025,2]
[425007522,1781412632000,-1977.1177884,0.00025,5]
[425007519,1781412632000,-166.66,0.000246,30]
[425007520,1781412632000,-1000.0,0.00024658,2]
[425007521,1781412632000,-213.69,0.00024658,2]
[425007518,1781412632000,-174.57,0.00024482,2]
[425007517,1781412632000,-177.93,0.00024475,2]
[425007515,1781412632000,-1137.2,0.00024407,2]
[425007514,1781412632000,-166.23,0.00024382,2]
[425007516,1781412632000,-310.45,0.00024467,2]
[425007592,1781412633000,-564.0,0.0002685,2]
[425007596,1781412633000,-8322.6629985,0.00026901,2]
[425007593,1781412633000,-586.14757628,0.0002685,2]
[425007599,1781412633000,-1218.3269559,0.00026989,2]
[425007591,1781412633000,-564.0,0.0002685,2]
[425007581,1781412633000,-564.0,0.0002685,2]
[425007589,1781412633000,-564.0,0.0002685,2]
[425007588,1781412633000,-564.0,0.0002685,2]
[425007583,1781412633000,-564.0,0.0002685,2]
[425007598,1781412633000,-269.1052738,0.00026965,2]
[425007587,1781412633000,-564.0,0.0002685,2]
[425007590,1781412633000,-564.0,0.0002685,2]
[425007594,1781412633000,-5563.28166095,0.00026853,2]
[425007605,1781412633000,-200.0,0.00027079,2]
[425007595,1781412633000,-2319.9342571,0.00026901,2]
[425007600,1781412633000,-2500.0,0.00026999,2]
[425007603,1781412633000,-5563.28166095,0.00027011,2]
[425007602,1781412633000,-2235.0,0.00027,2]
[425007601,1781412633000,-2260.0,0.00027,2]
[425007607,1781412633000,-500.0,0.00027099,2]
[425007604,1781412633000,-222.01401737,0.00027022,2]
[425007609,1781412633000,-500.0,0.00027099,2]
[425007608,1781412633000,-511.62,0.00027099,2]
[425007610,1781412633000,-558.63,0.00027099,2]
[425007611,1781412633000,-500.0,0.00027099,2]
[425007606,1781412633000,-773.68,0.00027099,2]
[425007597,1781412633000,-2616.4188159,0.00026901,2]
[425007586,1781412633000,-564.0,0.0002685,2]
[425007555,1781412633000,-160.0,0.00026617,2]
[425007584,1781412633000,-564.0,0.0002685,2]
[425007612,1781412633000,-624.47,0.00027099,2]
[425007557,1781412633000,-934.0,0.00026617,2]
[425007556,1781412633000,-150.0,0.00026617,2]
[425007559,1781412633000,-5563.28166102,0.00026695,2]
[425007558,1781412633000,-656.62438815,0.00026628,7]
[425007561,1781412633000,-171.94585547,0.00026717,14]
[425007560,1781412633000,-1367.319,0.00026717,14]
[425007566,1781412633000,-463.68,0.00026849,2]
[425007564,1781412633000,-504.84290886,0.00026775,7]
[425007567,1781412633000,-216.0,0.00026849,2]
[425007563,1781412633000,-222.01401736,0.00026768,2]
[425007565,1781412633000,-656.62438815,0.00026795,7]
[425007562,1781412633000,-504.84290886,0.00026766,7]
[425007570,1781412633000,-564.0,0.0002685,2]
[425007568,1781412633000,-240.0,0.00026849,2]
[425007569,1781412633000,-288.0,0.00026849,2]
[425007571,1781412633000,-564.0,0.0002685,2]
[425007573,1781412633000,-564.0,0.0002685,2]
[425007572,1781412633000,-564.0,0.0002685,2]
[425007578,1781412633000,-564.0,0.0002685,2]
[425007574,1781412633000,-564.0,0.0002685,2]
[425007575,1781412633000,-564.0,0.0002685,2]
[425007577,1781412633000,-564.0,0.0002685,2]
[425007576,1781412633000,-564.0,0.0002685,2]
[425007580,1781412633000,-564.0,0.0002685,2]
[425007579,1781412633000,-564.0,0.0002685,2]
[425007582,1781412633000,-564.0,0.0002685,2]
[425007585,1781412633000,-564.0,0.0002685,2]
[425007615,1781412633000,-86153.96851704,0.000271,2]
[425007662,1781412633000,-500.0,0.00027396,2]
[425007614,1781412633000,-16255.02618491,0.000271,2]
[425007644,1781412633000,-183.0,0.0002738,2]
[425007648,1781412633000,-500.0,0.00027395,2]
[425007642,1781412633000,-200.0,0.00027371,2]
[425007651,1781412633000,-1090.78599661,0.00027396,2]
[425007653,1781412633000,-773.68,0.00027396,2]
[425007650,1781412633000,-624.47,0.00027395,2]
[425007652,1781412633000,-1090.78599661,0.00027396,2]
[425007654,1781412633000,-773.68,0.00027396,2]
[425007657,1781412633000,-773.68,0.00027396,2]
[425007660,1781412633000,-500.0,0.00027396,2]
[425007613,1781412633000,-500.0,0.00027099,2]
[425007656,1781412633000,-773.68,0.00027396,2]
[425007647,1781412633000,-500.0,0.00027395,2]
[425007655,1781412633000,-773.68,0.00027396,2]
[425007661,1781412633000,-500.0,0.00027396,2]
[425007665,1781412633000,-511.62,0.00027396,2]
[425007663,1781412633000,-500.0,0.00027396,2]
[425007664,1781412633000,-500.0,0.00027396,2]
[425007666,1781412633000,-511.62,0.00027396,2]
[425007668,1781412633000,-511.62,0.00027396,2]
[425007671,1781412633000,-295.55985229,0.00027396,2]
[425007667,1781412633000,-511.62,0.00027396,2]
[425007669,1781412633000,-511.62,0.00027396,2]
[425007672,1781412633000,-558.63,0.00027396,2]
[425007670,1781412633000,-511.62,0.00027396,2]
[425007673,1781412633000,-558.63,0.00027396,2]
[425007659,1781412633000,-500.0,0.00027396,2]
[425007649,1781412633000,-624.47,0.00027395,2]
[425007658,1781412633000,-773.68,0.00027396,2]
[425007646,1781412633000,-773.68,0.00027395,2]
[425007616,1781412633000,-200.0,0.000271,2]
[425007643,1781412633000,-200.0,0.00027371,2]
[425007617,1781412633000,-200.0,0.000271,2]
[425007620,1781412633000,-2777.42603305,0.00027138,2]
[425007619,1781412633000,-9282.6369348,0.00027122,2]
[425007624,1781412633000,-500.0,0.00027227,2]
[425007622,1781412633000,-5563.28166095,0.0002717,2]
[425007621,1781412633000,-2777.42603305,0.0002714,2]
[425007623,1781412633000,-175.99838716,0.00027187,2]
[425007626,1781412633000,-194.04,0.00027232,2]
[425007627,1781412633000,-596.0,0.00027268,10]
[425007625,1781412633000,-511.62,0.00027227,2]
[425007628,1781412633000,-773.68,0.00027284,2]
[425007618,1781412633000,-200.0,0.000271,2]
[425007632,1781412633000,-183.6,0.00027317,2]
[425007633,1781412633000,-350.0,0.00027321,9]
[425007645,1781412633000,-260.05437342,0.00027387,2]
[425007639,1781412633000,-151.0,0.00027346,2]
[425007638,1781412633000,-151.0,0.00027346,2]
[425007640,1781412633000,-151.0,0.00027366,2]
[425007637,1781412633000,-151.0,0.00027346,2]
[425007641,1781412633000,-200.0,0.00027371,2]
[425007634,1781412633000,-5563.28166095,0.00027328,2]
[425007629,1781412633000,-408.73,0.00027284,2]
[425007631,1781412633000,-150.0,0.000273,2]
[425007636,1781412633000,-151.0,0.00027346,2]
[425007630,1781412633000,-771.20696337,0.00027297,2]
[425007635,1781412633000,-210.75,0.00027339,2]
[425007711,1781412634000,-500.0,0.00027397,2]
[425007710,1781412634000,-500.0,0.00027397,2]
[425007709,1781412634000,-500.0,0.00027397,2]
[425007708,1781412634000,-500.0,0.00027397,2]
[425007705,1781412634000,-500.0,0.00027397,2]
[425007704,1781412634000,-500.0,0.00027397,2]
[425007707,1781412634000,-500.0,0.00027397,2]
[425007701,1781412634000,-560.15515104,0.00027397,2]